{"text_format":"1","workbook":"xlsx","n_sheets":11,"sheets":["PORTADA","MENU","CFDIE","RPAGOSE","CFDIR","RPAGOSR","NOMINA","PAPELT","GENERAL","CATALOGO","c_Estado"],"not_rendered":{"charts":0,"images":22,"macros":1,"external_links":0,"defined_names":22,"comments":0,"pivot_tables":0},"unopened":[],"bounds":{"document_bytes":16777216,"sheet_cells":100000,"rows_first":2000,"rows_last":500,"rows_between":2000,"halvings":0,"cell_chars":16384,"cell_head_chars":4096},"cells_cut":0,"cells_raw":0,"read":"whole","date_system":"1900"}

{"sheet":"PORTADA","index":0,"n_rows":0,"n_cols":0,"rows_kept":0,"cut":false,"hidden":false,"merged":[]}

{"sheet":"MENU","index":1,"n_rows":11,"n_cols":3,"rows_kept":11,"cut":false,"hidden":true,"merged":[]}
[]
[]
[]
[]
[null,"Descripción","Hoja"]
[null,"Importación de CFDI emitidos (ingreso y egreso)","CFDIE"]
[null,"Importar emitidos con complemento de pago","RPAGOSE"]
[null,"Importación de CFDI recibidos (ingreso y egreso)","CFDIR"]
[null,"Importar emitidos con complemento de pago","RPAGOSR"]
[null,"Importar XML de nómina","NOMINA"]
[null,"Generar papeles de trabajo para diferencias","PAPELT"]

{"sheet":"CFDIE","index":2,"n_rows":6,"n_cols":36,"rows_kept":6,"cut":false,"hidden":true,"merged":[[4,5,4,7],[4,8,4,11]]}
[]
[]
[]
[]
[null,null,null,null,null,"Emisor",null,null,"Receptor"]
[null,"Fecha ","Tipo de comprobante","Serie y folio","Folio fiscal","RFC","NOMBRE","Régimen fiscal","RFC","Nombre ","Régimen fiscal","USO","Descripción","Objeto de impuesto","Importe","Descuento","Importe - descuento","Base IEPS","IEPS","Base IVA 8%","IVA 8%","Base IVA 16%","IVA 16%","Retención ISR","Retención IVA","Retención IEPS","Total del comprobante","Método de pago","Forma de pago","Moneda","Tipo de cambio","Importe mondea extranjera","Tipo de relación","UUID relacionado","Fecha de cancelación","Ruta"]

{"sheet":"RPAGOSE","index":3,"n_rows":471,"n_cols":71,"rows_kept":471,"cut":false,"hidden":true,"merged":[[5,49,5,56],[5,57,5,64],[4,21,4,47],[5,9,5,11],[5,12,5,14],[5,15,5,20],[5,32,5,35],[5,36,5,45],[5,46,5,47]]}
[null,null,null,null,null,null,null,null,null,null,null,null,null,null,null,null,null,null,null,null,null,null,null,null,null,null,null,null,null,null,null,null,null,null,null,null,null,null,null,null,null,null,null,null,null,null,null,null,null,null,null,null,null,null,null,null,null,null,null,null,null,null,null,null,null,""]
[null,"Hoja para importar los XML emitidos con el complemento de recepción de pagos",null,null,null,null,null,null,null,null,null,null,null,null,null,null,null,null,null,null,null,null,null,null,null,null,null,null,null,null,null,null,null,null,null,null,null,null,null,null,null,null,null,null,null,null,null,null,null,null,null,null,null,null,null,null,null,null,null,null,null,null,null,null,null,""]
[null,null,null,null,null,null,null,null,null,null,null,null,null,null,null,null,null,null,null,null,null,null,null,null,null,null,null,null,null,null,null,null,null,null,null,null,null,null,null,null,null,null,null,null,null,null,null,null,null,null,null,null,null,null,null,null,null,null,null,null,null,null,null,null,null,""]
[null,null,null,null,null,null,null,null,null,null,null,null,null,null,null,null,null,null,null,null,null,null,null,null,null,null,null,null,null,null,null,null,null,null,null,null,null,null,null,null,null,null,null,null,null,null,null,null,null,null,null,null,null,null,null,null,null,null,null,null,null,null,null,null,null,""]
[null,null,null,null,null,null,null,null,null,null,null,null,null,null,null,null,null,null,null,null,null,"Complemento de recepción de pagos",null,null,null,null,null,null,null,null,null,null,null,null,null,null,null,null,null,null,null,null,null,null,null,null,null,null,null,null,null,null,null,null,null,null,null,null,null,null,null,null,null,null,null,""]
[null,null,null,null,null,null,null,null,null,"Emisor",null,null,"Receptor",null,null,"Campos generales CFDI ",null,null,null,null,null,null,null,null,null,null,null,null,null,null,null,null,"Solo que el pago se reciba en SPEI",null,null,null,"Documentos que se cobran",null,null,null,null,null,null,null,null,null,"Timbre fiscal del complemento de recepción de pagos",null,null,"Impuestos trasladados",null,null,null,null,null,null,null,"Impuestos retenidos",null,null,null,null,null,null,null,""]
[null,"Fecha de emisión","Folio","Serie","Subtotal","Moneda","Total","Tipo de comprobante","Lugar Expedicion","Rfc","Nombre","Régimen fiscal","RFC receptor","Nombre","Régimen fiscal","ClaveProdServ","Cantidad","Unidad","Descripcion","ValorUnitario","Importe","Fecha de pago","Forma de pago","MonedaP","TipoCambioP","Monto","NumOperacion","RfcEmisorCtaOrd ","NomBancoOrdExt ","CtaOrdenante","RfcEmisorCtaBen ","CtaBeneficiario","TipoCadPago ","CertPago","CadPago","SelloPago","IdDocumento ","Serie","Folio","MonedaDR ","TipoCambioDR","MetodoDePagoDR","NumParcialidad ","ImpSaldoAnt ","ImpPagado ","ImpSaldoInsoluto","Fecha de timbrado","UUID","Objeto de impuestos DR","Base para IEPS","Tipo factor","Tasa o cuota","Total IEPS trasladado del comprobante","Base para IVA","Tipo  factor","Tasa o cuota","Total IVA trasladado del comprobante","Base retención ISR","Tipo factor","Tasa o cuota","Retención de ISR","Base retención IVA","Tipo factor","Tasa o cuota","Retención IVA","USO del CFDI","Base de ISR","IVA de los CFDI (VERIFICAR DATO)","Fecha de cancelación","Ruta del archivo"]
[null,null,null,null,null,null,null,null,null,null,null,null,null,null,null,null,null,null,null,null,null,null,null,null,null,null,null,null,null,null,null,null,null,null,null,null,null,null,null,null,null,null,null,null,null,null,null,null,null,null,null,null,null,null,null,null,null,null,null,null,null,null,null,null,null,null,null,null,null,null,{"$f":"IFERROR(VLOOKUP(W8,FORMAP,2,FALSE)&\" (\" &VLOOKUP(W8,FORMAP,3,FALSE)&\")\",\"\")","v":""}]
[]
[]
[]
[]
[]
[]
[]
[]
[]
[]
[]
[]
[]
[]
[]
[]
[]
[]
[]
[]
[]
[]
[]
[]
[]
[]
[]
[]
[]
[]
[]
[]
[]
[]
[]
[]
[]
[]
[]
[]
[]
[]
[]
[]
[]
[]
[]
[]
[]
[]
[]
[]
[]
[]
[]
[]
[]
[]
[]
[]
[]
[]
[]
[]
[]
[]
[]
[]
[]
[]
[]
[]
[]
[]
[]
[]
[]
[]
[]
[]
[]
[]
[]
[]
[]
[]
[]
[]
[]
[]
[]
[]
[]
[]
[]
[]
[]
[]
[]
[]
[]
[]
[]
[]
[]
[]
[]
[]
[]
[]
[]
[]
[]
[]
[]
[]
[]
[]
[]
[]
[]
[]
[]
[]
[]
[]
[]
[]
[]
[]
[]
[]
[]
[]
[]
[]
[]
[]
[]
[]
[]
[]
[]
[]
[]
[]
[]
[]
[]
[]
[]
[]
[]
[]
[]
[]
[]
[]
[]
[]
[]
[]
[]
[]
[]
[]
[]
[]
[]
[]
[]
[]
[]
[]
[]
[]
[]
[]
[]
[]
[]
[]
[]
[]
[]
[]
[]
[]
[]
[]
[]
[]
[]
[]
[]
[]
[]
[]
[]
[]
[]
[]
[]
[]
[]
[]
[]
[]
[]
[]
[]
[]
[]
[]
[]
[]
[]
[]
[]
[]
[]
[]
[]
[]
[]
[]
[]
[]
[]
[]
[]
[]
[]
[]
[]
[]
[]
[]
[]
[]
[]
[]
[]
[]
[]
[]
[]
[]
[]
[]
[]
[]
[]
[]
[]
[]
[]
[]
[]
[]
[]
[]
[]
[]
[]
[]
[]
[]
[]
[]
[]
[]
[]
[]
[]
[]
[]
[]
[]
[]
[]
[]
[]
[]
[]
[]
[]
[]
[]
[]
[]
[]
[]
[]
[]
[]
[]
[]
[]
[]
[]
[]
[]
[]
[]
[]
[]
[]
[]
[]
[]
[]
[]
[]
[]
[]
[]
[]
[]
[]
[]
[]
[]
[]
[]
[]
[]
[]
[]
[]
[]
[]
[]
[]
[]
[]
[]
[]
[]
[]
[]
[]
[]
[]
[]
[]
[]
[]
[]
[]
[]
[]
[]
[]
[]
[]
[]
[]
[]
[]
[]
[]
[]
[]
[]
[]
[]
[]
[]
[]
[]
[]
[]
[]
[]
[]
[]
[]
[]
[]
[]
[]
[]
[]
[]
[]
[]
[]
[]
[]
[]
[]
[]
[]
[]
[]
[]
[]
[]
[]
[]
[]
[]
[]
[]
[]
[]
[]
[]
[]
[]
[]
[]
[]
[]
[]
[]
[]
[]
[]
[]
[]
[]
[]
[]
[]
[]
[]
[]
[]
[]
[]
[]
[]
[]
[]
[]
[]
[]
[]
[]
[]
[]
[]
[]
[]
[]
[]
[]
[]
[]
[]
[]
[]
[]
[]
[]
[]
[]
[]
[]
[]
[null,null,null,null,null,null,null,null,null,null,null,null,null,null,null,null,null,null,null,null,null,null,null,null,null,null,null,null,null,null,null,null,null,null,null,null,null,null,null,null,null,null,null,null,null,null,null,null,null,null,null,null,null,null,null,null,null,null,null,null,null,null,null,null,null,null,null,null,null,null,{"$f":"IFERROR(VLOOKUP(W471,FORMAP,2,FALSE)&\" (\" &VLOOKUP(W471,FORMAP,3,FALSE)&\")\",\"\")","v":""}]

{"sheet":"CFDIR","index":4,"n_rows":6,"n_cols":36,"rows_kept":6,"cut":false,"hidden":true,"merged":[[4,5,4,7],[4,8,4,11]]}
[]
[]
[]
[]
[null,null,null,null,null,"Emisor",null,null,"Receptor"]
[null,"Fecha ","Tipo de comprobante","Serie y folio","Folio fiscal","RFC","NOMBRE","Régimen fiscal","RFC","Nombre ","Régimen fiscal","USO","Descripción","Objeto de impuesto","Importe","Descuento","Importe - descuento","Base IEPS","IEPS","Base IVA 8%","IVA 8%","Base IVA 16%","IVA 16%","Retención ISR","Retención IVA","Retención IEPS","Total del comprobante","Método de pago","Forma de pago","Moneda","Tipo de cambio","Importe mondea extranjera","Tipo de relación","UUID relacionado","Fecha de cancelación","Ruta"]

{"sheet":"RPAGOSR","index":5,"n_rows":7,"n_cols":70,"rows_kept":7,"cut":false,"hidden":true,"merged":[[5,49,5,56],[5,57,5,64],[4,21,4,47],[5,9,5,11],[5,12,5,14],[5,15,5,20],[5,32,5,35],[5,36,5,45],[5,46,5,47]]}
[null,null,null,null,null,null,null,null,null,null,null,null,null,null,null,null,null,null,null,null,null,null,null,null,null,null,null,null,null,null,null,null,null,null,null,null,null,null,null,null,null,null,null,null,null,null,null,null,null,null,null,null,null,null,null,null,null,null,null,null,null,null,null,null,null,""]
[null,"Hoja para importar los XML emitidos con el complemento de recepción de pagos",null,null,null,null,null,null,null,null,null,null,null,null,null,null,null,null,null,null,null,null,null,null,null,null,null,null,null,null,null,null,null,null,null,null,null,null,null,null,null,null,null,null,null,null,null,null,null,null,null,null,null,null,null,null,null,null,null,null,null,null,null,null,null,""]
[null,null,null,null,null,null,null,null,null,null,null,null,null,null,null,null,null,null,null,null,null,null,null,null,null,null,null,null,null,null,null,null,null,null,null,null,null,null,null,null,null,null,null,null,null,null,null,null,null,null,null,null,null,null,null,null,null,null,null,null,null,null,null,null,null,""]
[null,null,null,null,null,null,null,null,null,null,null,null,null,null,null,null,null,null,null,null,null,null,null,null,null,null,null,null,null,null,null,null,null,null,null,null,null,null,null,null,null,null,null,null,null,null,null,null,null,null,null,null,null,null,null,null,null,null,null,null,null,null,null,null,null,""]
[null,null,null,null,null,null,null,null,null,null,null,null,null,null,null,null,null,null,null,null,null,"Complemento de recepción de pagos",null,null,null,null,null,null,null,null,null,null,null,null,null,null,null,null,null,null,null,null,null,null,null,null,null,null,null,null,null,null,null,null,null,null,null,null,null,null,null,null,null,null,null,""]
[null,null,null,null,null,null,null,null,null,"Emisor",null,null,"Receptor",null,null,"Campos generales CFDI ",null,null,null,null,null,null,null,null,null,null,null,null,null,null,null,null,"Solo que el pago se reciba en SPEI",null,null,null,"Documentos que se cobran",null,null,null,null,null,null,null,null,null,"Timbre fiscal del complemento de recepción de pagos",null,null,"Impuestos trasladados",null,null,null,null,null,null,null,"Impuestos retenidos",null,null,null,null,null,null,null,""]
[null,"Fecha de emisión","Folio","Serie","Subtotal","Moneda","Total","Tipo de comprobante","Lugar Expedicion","Rfc","Nombre","Régimen fiscal","RFC receptor","Nombre","Régimen fiscal","ClaveProdServ","Cantidad","Unidad","Descripcion","ValorUnitario","Importe","Fecha de pago","Forma de pago","MonedaP","TipoCambioP","Monto","NumOperacion","RfcEmisorCtaOrd ","NomBancoOrdExt ","CtaOrdenante","RfcEmisorCtaBen ","CtaBeneficiario","TipoCadPago ","CertPago","CadPago","SelloPago","IdDocumento ","Serie","Folio","MonedaDR ","TipoCambioDR","MetodoDePagoDR","NumParcialidad ","ImpSaldoAnt ","ImpPagado ","ImpSaldoInsoluto","Fecha de timbrado","UUID","Objeto de impuestos DR","Base para IEPS","Tipo factor","Tasa o cuota","Total IEPS trasladado del comprobante","Base para IVA","Tipo  factor","Tasa o cuota","Total IVA trasladado del comprobante","Base retención ISR","Tipo factor","Tasa o cuota","Retención de ISR","Base retención IVA","Tipo factor","Tasa o cuota","Retención IVA","USO del CFDI","Base de ISR","IVA de los CFDI (VERIFICAR DATO)","Ruta del archivo","Fecha de cancelación"]

{"sheet":"NOMINA","index":6,"n_rows":5,"n_cols":72,"rows_kept":5,"cut":false,"hidden":true,"merged":[[3,51,3,52],[3,53,3,56],[3,57,3,61],[3,62,3,66],[3,67,3,69]]}
[]
[]
[]
[null,null,null,null,null,null,null,null,null,null,null,null,null,null,null,null,null,null,null,null,null,null,null,null,null,null,null,null,null,null,null,null,null,null,null,null,null,null,null,null,null,null,null,null,null,null,null,null,null,null,null,"Vanta acciones",null,"Tiempo extra",null,null,null,"Jubilaciones, pensiones, retiro",null,null,null,null,"Pagos por separación",null,null,null,null,"Incapacidades"]
[null,"Fecha de emisión","Fecha de timbrado","UUID","Concepto","Serie","Folio","Forma de pago","Metodo de pago","Moneda","Registro patronal","Nombre del patron","Riesgo de puesto","Concepto riesgo de puesto (este dato no pertenece al XML)","No. De empleado","Nombre del empleado","Departamento","Puesto","Clave de la entidad federrativa","Estado (este dato no pertenece al XML)","CURP","RFC","No. SS","Fecha inicio relación laboral","Salario diario integrado","Salario base de cotización","Tipo de regimen","Tipo de régimen (este dato no pertenece al XML)","Tipo de jornada","Tipo de jornada (este dato no pertenece al XML)","Tipo de contrato","Tipo de contrato (este dato no pertenece al XML)","Antigüedad","Fecha inicial pago","Fecha final pago","Fecha de pago","Periodicidad de pago","Periodicidad de pago  (este dato no pertenece al XML)","Clave de percepción","Percepción","Percepción de acuerdo al catálogo del SAT  (este dato no pertenece al XML)","Percepción exenta","Percepción gravado","Clave de deducción","Deducción","Deducción de acuerdo al catálogo del SAT  (este dato no pertenece al XML)","Importe deducción","Total del comprobante","Tipo de relación","UUID tipo de relación","Subsidio al empleo causado","Valor de mercado","Precio al otorgarse","Días","Tipo de horas","Horas extras","Importe pagado","Total en una sola exhibición","Total parcialidad","Monto diario","Ingreso acumulable","Ingreso no acumulable","Total pagado","No. de años de servicio","Último sueldo mensual ordinario","Ingreso acumulable","Ingreso no acumulable","Días de incapacidad","Tipo de incapacidad","Importe monetario","Dìas pagados","Ruta"]

{"sheet":"PAPELT","index":7,"n_rows":131,"n_cols":14,"rows_kept":131,"cut":false,"hidden":true,"merged":[[77,1,77,11],[1,1,1,8],[26,1,26,9],[56,3,56,4],[56,5,56,6],[56,7,56,8],[51,1,51,11],[103,1,103,8],[82,3,82,4],[82,5,82,6],[82,9,82,10],[82,7,82,8]]}
[]
[null,"DETERMINACIÓN BASES PARA ISR"]
[]
[]
[null,"Tipo de consulta"]
[]
[null,"Ejercicio","Periodo","Total de los CFDI campo importe","CFDI emitidos con método de pago PPD","CFDI emitidos con método de pago PUE","CFDI emitidos con complemento de pagos","Descuento en CFDI de tipo ingreso con método de pago PUE","Campo importe CFDI emitidos de tipo egreso"]
[]
[]
[]
[]
[]
[]
[]
[]
[]
[]
[]
[]
[]
[]
[]
[]
[]
[]
[]
[null,"DETERMINACIÓN DIFERENCIAS DE IVA"]
[]
[null,"Tipo de consulta","Recibidas"]
[]
[null,"Diferencias IVA"]
[null,"Ejercicio","Periodo","IVA trasladado al 8% CFDI emitidos de tipo ingreso","IVA trasladado al 16% CFDI emitidos de tipo ingreso","IVA en complemento de pago IVA al 8%","IVA en complemento de pago IVA al 16%","Total de IVA cobrado","IVA declarado","Diferencia"]
[]
[]
[]
[]
[]
[]
[]
[]
[]
[]
[]
[]
[]
[]
[]
[]
[]
[]
[]
[null,"DETERMINACIÓN DIFERENCIAS DE RETENCIONES DE ISR (SOLO CFDI RECIBIDOS)"]
[]
[]
[]
[]
[null,null,null,"Emisor persona física arrendamiento de inmuebles (régimen 606)",null,"Emisor persona física servicios profesionales (régimen 612)",null,"Emisor persona física RESICO (régimen 626)"]
[null,"Ejercicio","Periodo","CFDI recibidos con método de pago PUE","CFDI recibidos con complemento de pago","CFDI recibidos con método de pago PUE","CFDI recibidos con complemento de pago","CFDI recibidos con método de pago PUE","CFDI recibidos con complemento de pago","Total retenciones","Retenciones ISR declarados","Diferencia"]
[]
[]
[]
[]
[]
[]
[]
[]
[]
[]
[]
[]
[]
[]
[]
[]
[]
[]
[]
[null,"DETERMINACIÓN DIFERENCIAS DE RETENCIONES DE IVA (SOLO CFDI RECIBIDOS)"]
[]
[]
[]
[]
[null,null,null,"Emisor persona física arrendamiento de inmuebles (régimen 606)",null,"Emisor persona física servicios profesionales (régimen 612)",null,"Emisor persona física servicios profesionales (régimen 624)",null,"Emisor persona física RESICO (régimen 626)"]
[null,"Ejercicio","Periodo","CFDI recibidos con método de pago PUE","CFDI recibidos con complemento de pago","CFDI recibidos con método de pago PUE","CFDI recibidos con complemento de pago","CFDI recibidos con método de pago PUE","CFDI recibidos con complemento de pago","CFDI recibidos con método de pago PUE","CFDI recibidos con complemento de pago","Total retenciones","Retenciones ISR declarados","Diferencia"]
[]
[]
[]
[]
[]
[]
[]
[]
[]
[]
[]
[]
[]
[]
[]
[]
[]
[]
[]
[null,"DETERMINACIÓN DIFERENCIAS DE RETENCIONES SALARIOS Y ASIMILADOS"]
[]
[]
[null,"Diferencias salarios"]
[null,null,null,"Régimen 02","Régimen 03, 04 y 12","Régimen 13"]
[null,"Ejercicio","Periodo","Retención ISR","Retención ISR","Retención ISR","Total retenciones","Retenciones ISR declarados","Diferencia"]
[]
[]
[]
[]
[]
[]
[]
[]
[]
[]
[]
[]
[]
[]
[]
[]
[]
[]
[]
[]
[null,null,null,"Régimen 05, 06, 07, 08, 09, 10, 11"]
[null,"Ejercicio","Periodo","Retención ISR","Retenciones ISR declarados","Diferencia"]

{"sheet":"GENERAL","index":8,"n_rows":14,"n_cols":3,"rows_kept":14,"cut":false,"hidden":true,"merged":[]}
[]
[]
[null,"Enero",1]
[null,"Febrero",2]
[null,"Marzo",3]
[null,"Abril",4]
[null,"Mayo",5]
[null,"Junio",6]
[null,"Julio",7]
[null,"Agosto",8]
[null,"Septiembre",9]
[null,"Octubre",10]
[null,"Noviembre",11]
[null,"Diciembre",12]

{"sheet":"CATALOGO","index":9,"n_rows":229,"n_cols":11,"rows_kept":229,"cut":false,"hidden":true,"merged":[]}
[]
[]
[]
[null,"c_RiesgoPuesto","Descripción","Fecha inicio de vigencia","Fecha fin de vigencia",null,null,"c_TipoPercepcion","Descripción","Fecha inicio de vigencia","Fecha fin de vigencia"]
[null,1,"Clase I","2017-01-01",null,null,null,1,"Sueldos, Salarios  Rayas y Jornales","2016-11-01"]
[null,2,"Clase II","2017-01-01",null,null,null,2,"Gratificación Anual (Aguinaldo)","2016-11-01"]
[null,3,"Clase III","2017-01-01",null,null,null,3,"Participación de los Trabajadores en las Utilidades PTU","2016-11-01"]
[null,4,"Clase IV","2017-01-01",null,null,null,4,"Reembolso de Gastos Médicos Dentales y Hospitalarios","2016-11-01"]
[null,5,"Clase V","2017-01-01",null,null,null,5,"Fondo de Ahorro","2016-11-01"]
[null,99,"No aplica","2017-08-13",null,null,null,6,"Caja de ahorro","2016-11-01"]
[null,null,null,null,null,null,null,9,"Contribuciones a Cargo del Trabajador Pagadas por el Patrón","2016-11-01"]
[null,null,null,null,null,null,null,10,"Premios por puntualidad","2016-11-01"]
[null,"c_TipoRegimen","Descripción","Fecha inicio de vigencia","Fecha fin de vigencia",null,null,11,"Prima de Seguro de vida","2016-11-01"]
[null,2,"Sueldos (Incluye ingresos señalados en la fracción I del artículo 94 de LISR)","2017-01-01",null,null,null,12,"Seguro de Gastos Médicos Mayores","2016-11-01"]
[null,3,"Jubilados","2017-01-01",null,null,null,13,"Cuotas Sindicales Pagadas por el Patrón","2016-11-01"]
[null,4,"Pensionados","2017-01-01",null,null,null,14,"Subsidios por incapacidad","2016-11-01"]
[null,5,"Asimilados Miembros Sociedades Cooperativas Produccion","2017-01-01",null,null,null,15,"Becas para trabajadores y/o hijos","2016-11-01"]
[null,6,"Asimilados Integrantes Sociedades Asociaciones Civiles","2017-01-01",null,null,null,19,"Horas extra","2016-11-01"]
[null,7,"Asimilados Miembros consejos","2017-01-01",null,null,null,20,"Prima dominical","2016-11-01"]
[null,8,"Asimilados comisionistas","2017-01-01",null,null,null,21,"Prima vacacional","2016-11-01"]
[null,9,"Asimilados Honorarios","2017-01-01",null,null,null,22,"Prima por antigüedad","2016-11-01"]
[null,10,"Asimilados acciones","2017-01-01",null,null,null,23,"Pagos por separación","2016-11-01"]
[null,11,"Asimilados otros","2017-01-01",null,null,null,24,"Seguro de retiro","2016-11-01"]
[null,12,"Jubilados o Pensionados","2017-03-27",null,null,null,25,"Indemnizaciones","2016-11-01"]
[null,13,"Indemnización o Separación","2018-10-15",null,null,null,26,"Reembolso por funeral","2016-11-01"]
[null,99,"Otro Regimen","2017-01-01",null,null,null,27,"Cuotas de seguridad social pagadas por el patrón","2016-11-01"]
[null,null,null,null,null,null,null,28,"Comisiones","2016-11-01"]
[null,null,null,null,null,null,null,29,"Vales de despensa","2016-11-01"]
[null,"c_TipoContrato","Descripción",null,null,null,null,30,"Vales de restaurante","2016-11-01"]
[null,1,"Contrato de trabajo por tiempo indeterminado",null,null,null,null,31,"Vales de gasolina","2016-11-01"]
[null,2,"Contrato de trabajo para obra determinada",null,null,null,null,32,"Vales de ropa","2016-11-01"]
[null,3,"Contrato de trabajo por tiempo determinado",null,null,null,null,33,"Ayuda para renta","2016-11-01"]
[null,4,"Contrato de trabajo por temporada",null,null,null,null,34,"Ayuda para artículos escolares","2016-11-01"]
[null,5,"Contrato de trabajo sujeto a prueba",null,null,null,null,35,"Ayuda para anteojos","2016-11-01"]
[null,6,"Contrato de trabajo con capacitación inicial",null,null,null,null,36,"Ayuda para transporte","2016-11-01"]
[null,7,"Modalidad de contratación por pago de hora laborada",null,null,null,null,37,"Ayuda para gastos de funeral","2016-11-01"]
[null,8,"Modalidad de trabajo por comisión laboral",null,null,null,null,38,"Otros ingresos por salarios","2016-11-01"]
[null,9,"Modalidades de contratación donde no existe relación de trabajo",null,null,null,null,39,"Jubilaciones, pensiones o haberes de retiro","2016-11-01"]
[null,10,"Jubilación, pensión, retiro.",null,null,null,null,44,"Jubilaciones, pensiones o haberes de retiro en parcialidades","2016-11-01"]
[null,99,"Otro contrato",null,null,null,null,45,"Ingresos en acciones o títulos valor que representan bienes","2016-11-01"]
[null,null,null,null,null,null,null," 046","Ingresos asimilados a salarios","2016-11-01"]
[null,null,null,null,null,null,null," 047","Alimentación","2016-11-01"]
[null,"c_PeriodicidadPago","Descripción","Fecha inicio de vigencia","Fecha fin de vigencia",null,null,48,"Habitación","2016-11-01"]
[null,1,"Diario","2016-11-01",null,null,null,49,"Premios por asistencia","2016-11-01"]
[null,2,"Semanal","2016-11-01",null,null,null,50,"Viáticos","2017-01-06"]
[null,3,"Catorcenal","2016-11-01",null,null,null,51,"Pagos por gratificaciones, primas, compensaciones, recompensas u otros a extrabajadores derivados de jubilación en parcialidades","2018-10-15"]
[null,4,"Quincenal","2016-11-01",null,null,null,52,"Pagos que se realicen a extrabajadores que obtengan una jubilación en parcialidades derivados de la ejecución de resoluciones judicial o de un laudo","2018-10-15"]
[null,5,"Mensual","2016-11-01",null,null,null,53,"Pagos que se realicen a extrabajadores que obtengan una jubilación en una sola exhibición derivados de la ejecución de resoluciones judicial o de un laudo","2018-10-15"]
[null,6,"Bimestral","2016-11-01"]
[null,7,"Unidad obra","2016-11-01"]
[null,8,"Comisión","2016-11-01",null,null,null," c_TipoOtroPago","Descripción","Fecha inicio de vigencia","Fecha fin de vigencia"]
[null,9,"Precio alzado","2016-11-01",null,null,null,1,"Reintegro de ISR pagado en exceso (siempre que no haya sido enterado al SAT).","2017-01-01"]
[null,10,"Decenal","2017-01-19",null,null,null,2,"Subsidio para el empleo (efectivamente entregado al trabajador).","2017-01-01"]
[null,99,"Otra Periodicidad","2016-11-01",null,null,null,3,"Viáticos (entregados al trabajador).","2017-01-01"]
[null,null,null,null,null,null,null,4,"Aplicación de saldo a favor por compensación anual.","2017-01-01"]
[null,null,null,null,null,null,null,5,"Reintegro de ISR retenido en exceso de ejercicio anterior (siempre que no haya sido enterado al SAT).","2017-12-05"]
[null,"c_TipoIncapacidad","Descripción",null,null,null,null,999,"Pagos distintos a los listados y que no deben considerarse como ingreso por sueldos, salarios o ingresos asimilados.","2017-01-01"]
[null,1,"Riesgo de trabajo."]
[null,2,"Enfermedad en general."]
[null,3,"Maternidad.",null,null,null,null,"c_TipoDeduccion","Descripción","Fecha inicio de vigencia","Fecha fin de vigencia"]
[null,null,null,null,null,null,null,1,"Seguridad social","2016-11-01"]
[null,null,null,null,null,null,null,2,"ISR","2016-11-01"]
[null,"c_TipoJornada","Descripción",null,null,null,null,3,"Aportaciones a retiro, cesantía en edad avanzada y vejez.","2016-11-01"]
[null,1,"Diurna",null,null,null,null,4,"Otros","2016-11-01"]
[null,2,"Nocturna",null,null,null,null,5,"Aportaciones a Fondo de vivienda","2016-11-01"]
[null,3,"Mixta",null,null,null,null,6,"Descuento por incapacidad","2016-11-01"]
[null,4,"Por hora",null,null,null,null,7,"Pensión alimenticia","2016-11-01"]
[null,5,"Reducida",null,null,null,null,8,"Renta","2016-11-01"]
[null,6,"Continuada",null,null,null,null,9,"Préstamos provenientes del Fondo Nacional de la Vivienda para los Trabajadores","2016-11-01"]
[null,7,"Partida",null,null,null,null,10,"Pago por crédito de vivienda","2016-11-01"]
[null,8,"Por turnos",null,null,null,null,11,"Pago de abonos INFONACOT","2016-11-01"]
[null,99,"Otra Jornada",null,null,null,null,12,"Anticipo de salarios","2016-11-01"]
[null,null,null,null,null,null,null,13,"Pagos hechos con exceso al trabajador","2016-11-01"]
[null,null,null,null,null,null,null,14,"Errores","2016-11-01"]
[null,"c_Estado","c_Pais","Nombre del estado",null,null,null,15,"Pérdidas","2016-11-01"]
[null,"AGU","MEX","Aguascalientes",null,null,null,16,"Averías","2016-11-01"]
[null,"BCN","MEX","Baja California",null,null,null,17,"Adquisición de artículos producidos por la empresa o establecimiento","2016-11-01"]
[null,"BCS","MEX","Baja California Sur",null,null,null,18,"Cuotas para la constitución y fomento de sociedades cooperativas y de cajas de ahorro","2016-11-01"]
[null,"CAM","MEX","Campeche",null,null,null,19,"Cuotas sindicales","2016-11-01"]
[null,"CHP","MEX","Chiapas",null,null,null,20,"Ausencia (Ausentismo)","2016-11-01"]
[null,"CHH","MEX","Chihuahua",null,null,null,21,"Cuotas obrero patronales","2016-11-01"]
[null,"COA","MEX","Coahuila",null,null,null,22,"Impuestos Locales","2016-11-01"]
[null,"COL","MEX","Colima",null,null,null,23,"Aportaciones voluntarias","2016-11-01"]
[null,"DIF","MEX","Ciudad de México",null,null,null,24,"Ajuste en Gratificación Anual (Aguinaldo) Exento","2017-01-06"]
[null,"DUR","MEX","Durango",null,null,null,25,"Ajuste en Gratificación Anual (Aguinaldo) Gravado","2017-01-06"]
[null,"GUA","MEX","Guanajuato",null,null,null,26,"Ajuste en Participación de los Trabajadores en las Utilidades PTU Exento","2017-01-06"]
[null,"GRO","MEX","Guerrero",null,null,null,27,"Ajuste en Participación de los Trabajadores en las Utilidades PTU Gravado","2017-01-06"]
[null,"HID","MEX","Hidalgo",null,null,null,28,"Ajuste en Reembolso de Gastos Médicos Dentales y Hospitalarios Exento","2017-01-06"]
[null,"JAL","MEX","Jalisco",null,null,null,29,"Ajuste en Fondo de ahorro Exento","2017-01-06"]
[null,"MEX","MEX","Estado de México",null,null,null,30,"Ajuste en Caja de ahorro Exento","2017-01-06"]
[null,"MIC","MEX","Michoacán",null,null,null,31,"Ajuste en Contribuciones a Cargo del Trabajador Pagadas por el Patrón Exento","2017-01-06"]
[null,"MOR","MEX","Morelos",null,null,null,32,"Ajuste en Premios por puntualidad Gravado","2017-01-06"]
[null,"NAY","MEX","Nayarit",null,null,null,33,"Ajuste en Prima de Seguro de vida Exento","2017-01-06"]
[null,"NLE","MEX","Nuevo León",null,null,null,34,"Ajuste en Seguro de Gastos Médicos Mayores Exento","2017-01-06"]
[null,"OAX","MEX","Oaxaca",null,null,null,35,"Ajuste en Cuotas Sindicales Pagadas por el Patrón Exento","2017-01-06"]
[null,"PUE","MEX","Puebla",null,null,null,36,"Ajuste en Subsidios por incapacidad Exento","2017-01-06"]
[null,"QUE","MEX","Querétaro",null,null,null,37,"Ajuste en Becas para trabajadores y/o hijos Exento","2017-01-06"]
[null,"ROO","MEX","Quintana Roo",null,null,null,38,"Ajuste en Horas extra Exento","2017-01-06"]
[null,"SLP","MEX","San Luis Potosí",null,null,null,39,"Ajuste en Horas extra Gravado","2017-01-06"]
[null,"SIN","MEX","Sinaloa",null,null,null,40,"Ajuste en Prima dominical Exento","2017-01-06"]
[null,"SON","MEX","Sonora",null,null,null,41,"Ajuste en Prima dominical Gravado","2017-01-06"]
[null,"TAB","MEX","Tabasco",null,null,null,42,"Ajuste en Prima vacacional Exento","2017-01-06"]
[null,"TAM","MEX","Tamaulipas",null,null,null,43,"Ajuste en Prima vacacional Gravado","2017-01-06"]
[null,"TLA","MEX","Tlaxcala",null,null,null,44,"Ajuste en Prima por antigüedad Exento","2017-01-06"]
[null,"VER","MEX","Veracruz",null,null,null,45,"Ajuste en Prima por antigüedad Gravado","2017-01-06"]
[null,"YUC","MEX","Yucatán",null,null,null,46,"Ajuste en Pagos por separación Exento","2017-01-06"]
[null,"ZAC","MEX","Zacatecas",null,null,null,47,"Ajuste en Pagos por separación Gravado","2017-01-06"]
[null,"AL","USA","Alabama",null,null,null,48,"Ajuste en Seguro de retiro Exento","2017-01-06"]
[null,"AK","USA","Alaska",null,null,null,49,"Ajuste en Indemnizaciones Exento","2017-01-06"]
[null,"AZ","USA","Arizona",null,null,null,50,"Ajuste en Indemnizaciones Gravado","2017-01-06"]
[null,"AR","USA","Arkansas",null,null,null,51,"Ajuste en Reembolso por funeral Exento","2017-01-06"]
[null,"CA","USA","California",null,null,null,52,"Ajuste en Cuotas de seguridad social pagadas por el patrón Exento","2017-01-06"]
[null,"NC","USA","Carolina del Norte",null,null,null,53,"Ajuste en Comisiones Gravado","2017-01-06"]
[null,"SC","USA","Carolina del Sur",null,null,null,54,"Ajuste en Vales de despensa Exento","2017-01-06"]
[null,"CO","USA","Colorado",null,null,null,55,"Ajuste en Vales de restaurante Exento","2017-01-06"]
[null,"CT","USA","Connecticut",null,null,null,56,"Ajuste en Vales de gasolina Exento","2017-01-06"]
[null,"ND","USA","Dakota del Norte",null,null,null,57,"Ajuste en Vales de ropa Exento","2017-01-06"]
[null,"SD","USA","Dakota del Sur",null,null,null,58,"Ajuste en Ayuda para renta Exento","2017-01-06"]
[null,"DE","USA","Delaware",null,null,null,59,"Ajuste en Ayuda para artículos escolares Exento","2017-01-06"]
[null,"FL","USA","Florida",null,null,null,60,"Ajuste en Ayuda para anteojos Exento","2017-01-06"]
[null,"GA","USA","Georgia",null,null,null,61,"Ajuste en Ayuda para transporte Exento","2017-01-06"]
[null,"HI","USA","Hawái",null,null,null,62,"Ajuste en Ayuda para gastos de funeral Exento","2017-01-06"]
[null,"ID","USA","Idaho",null,null,null,63,"Ajuste en Otros ingresos por salarios Exento","2017-01-06"]
[null,"IL","USA","Illinois",null,null,null,64,"Ajuste en Otros ingresos por salarios Gravado","2017-01-06"]
[null,"IN","USA","Indiana",null,null,null,65,"Ajuste en Jubilaciones, pensiones o haberes de retiro en una sola exhibición Exento ","2018-10-15"]
[null,"IA","USA","Iowa",null,null,null,66,"Ajuste en Jubilaciones, pensiones o haberes de retiro en una sola exhibición Gravado","2018-10-15"]
[null,"KS","USA","Kansas",null,null,null,67,"Ajuste en Pagos por separación Acumulable","2017-01-06"]
[null,"KY","USA","Kentucky",null,null,null,68,"Ajuste en Pagos por separación No acumulable","2017-01-06"]
[null,"LA","USA","Luisiana",null,null,null,69,"Ajuste en Jubilaciones, pensiones o haberes de retiro en parcialidades Exento","2018-10-15"]
[null,"ME","USA","Maine",null,null,null,70,"Ajuste en Jubilaciones, pensiones o haberes de retiro en parcialidades Gravado","2018-10-15"]
[null,"MD","USA","Maryland",null,null,null,71,"Ajuste en Subsidio para el empleo (efectivamente entregado al trabajador)","2017-01-06"]
[null,"MA","USA","Massachusetts",null,null,null,72,"Ajuste en Ingresos en acciones o títulos valor que representan bienes Exento","2017-01-06","2018-10-14"]
[null,"MI","USA","Míchigan",null,null,null,73,"Ajuste en Ingresos en acciones o títulos valor que representan bienes Gravado","2017-01-06"]
[null,"MN","USA","Minnesota",null,null,null,74,"Ajuste en Alimentación Exento","2017-01-06"]
[null,"MS","USA","Misisipi",null,null,null,75,"Ajuste en Alimentación Gravado","2017-01-06"]
[null,"MO","USA","Misuri",null,null,null,76,"Ajuste en Habitación Exento","2017-01-06"]
[null,"MT","USA","Montana",null,null,null,77,"Ajuste en Habitación Gravado","2017-01-06"]
[null,"NE","USA","Nebraska",null,null,null,78,"Ajuste en Premios por asistencia","2017-01-06"]
[null,"NV","USA","Nevada",null,null,null,79,"Ajuste en Pagos distintos a los listados y que no deben considerarse como ingreso por sueldos, salarios o ingresos asimilados.","2017-01-06"]
[null,"NJ","USA","Nueva Jersey",null,null,null,80,"Ajuste en Viáticos gravados","2017-01-06"]
[null,"NY","USA","Nueva York",null,null,null,81,"Ajuste en Viáticos (entregados al trabajador)","2017-01-06"]
[null,"NH","USA","Nuevo Hampshire",null,null,null,"082","Ajuste en Fondo de ahorro Gravado","2017-01-06"]
[null,"NM","USA","Nuevo México",null,null,null,"083","Ajuste en Caja de ahorro Gravado","2017-01-06"]
[null,"OH","USA","Ohio",null,null,null,"084","Ajuste en Prima de Seguro de vida Gravado","2017-01-06"]
[null,"OK","USA","Oklahoma",null,null,null,"085","Ajuste en Seguro de Gastos Médicos Mayores Gravado","2017-01-06"]
[null,"OR","USA","Oregón",null,null,null,"086","Ajuste en Subsidios por incapacidad Gravado","2017-01-06"]
[null,"PA","USA","Pensilvania",null,null,null,"087","Ajuste en Becas para trabajadores y/o hijos Gravado","2017-01-06"]
[null,"RI","USA","Rhode Island",null,null,null,"088","Ajuste en Seguro de retiro Gravado","2017-01-06"]
[null,"TN","USA","Tennessee",null,null,null,"089","Ajuste en Vales de despensa Gravado","2017-01-06"]
[null,"TX","USA","Texas",null,null,null,"090","Ajuste en Vales de restaurante Gravado","2017-01-06"]
[null,"UT","USA","Utah",null,null,null,"091","Ajuste en Vales de gasolina Gravado","2017-01-06"]
[null,"VT","USA","Vermont",null,null,null,"092","Ajuste en Vales de ropa Gravado","2017-01-06"]
[null,"VA","USA","Virginia",null,null,null,"093","Ajuste en Ayuda para renta Gravado","2017-01-06"]
[null,"WV","USA","Virginia Occidental",null,null,null,"094","Ajuste en Ayuda para artículos escolares Gravado","2017-01-06"]
[null,"WA","USA","Washington",null,null,null,"095","Ajuste en Ayuda para anteojos Gravado","2017-01-06"]
[null,"WI","USA","Wisconsin",null,null,null,"096","Ajuste en Ayuda para transporte Gravado","2017-01-06"]
[null,"WY","USA","Wyoming",null,null,null,"097","Ajuste en Ayuda para gastos de funeral Gravado","2017-01-06"]
[null,"ON","CAN","Ontario ",null,null,null,"098","Ajuste a ingresos asimilados a salarios gravados","2017-01-06"]
[null,"QC","CAN"," Quebec ",null,null,null,"099","Ajuste a ingresos por sueldos y salarios gravados","2017-01-06"]
[null,"NS","CAN"," Nueva Escocia",null,null,null,100,"Ajuste en Viáticos exentos","2017-01-06"]
[null,"NB","CAN","Nuevo Brunswick ",null,null,null,101,"ISR Retenido de ejercicio anterior","2017-12-05"]
[null,"MB","CAN"," Manitoba",null,null,null,102,"Ajuste a pagos por gratificaciones, primas, compensaciones, recompensas u otros a extrabajadores derivados de jubilación en parcialidades, gravados","2018-10-15"]
[null,"BC","CAN"," Columbia Británica",null,null,null,103,"Ajuste a pagos que se realicen a extrabajadores que obtengan una jubilación en parcialidades derivados de la ejecución de una resolución judicial o de un laudo gravados","2018-10-15"]
[null,"PE","CAN"," Isla del Príncipe Eduardo",null,null,null,104,"Ajuste a pagos que se realicen a extrabajadores que obtengan una jubilación en parcialidades derivados de la ejecución de una resolución judicial o de un laudo exentos","2018-10-15"]
[null,"SK","CAN"," Saskatchewan",null,null,null,105,"Ajuste a pagos que se realicen a extrabajadores que obtengan una jubilación en una sola exhibición derivados de la ejecución de una resolución judicial o de un laudo gravados","2018-10-15"]
[null,"AB","CAN"," Alberta",null,null,null,106,"Ajuste a pagos que se realicen a extrabajadores que obtengan una jubilación en una sola exhibición derivados de la ejecución de una resolución judicial o de un laudo exentos","2018-10-15"]
[null,"NL","CAN"," Terranova y Labrador"]
[null,"NT","CAN"," Territorios del Noroeste"]
[null,"YT","CAN"," Yukón"]
[null,"UN","CAN"," Nunavut"]
[]
[]
[]
[]
[]
[]
[]
[]
[]
[]
[]
[]
[]
[]
[null,"c_TipoPercepcion","Descripción","Gravado","Exento","Régimen","Régimen consula","c_TipoRegimen","Descripción"]
[null,1,"Sueldos, Salarios  Rayas y Jornales","a","r",2,{"$f":"F186-B186","v":1},2,"Sueldos (Incluye ingresos señalados en la fracción I del artículo 94 de LISR)",2]
[null,2,"Gratificación Anual (Aguinaldo)","a","a",2,{"$f":"F187-B187","v":0},3,"Jubilados",3412]
[null,3,"Participación de los Trabajadores en las Utilidades PTU","a","a",2,-1,4,"Pensionados",3412]
[null,4,"Reembolso de Gastos Médicos Dentales y Hospitalarios","a","a",2,-2,5,"Asimilados Miembros Sociedades Cooperativas Produccion",567891011]
[null,5,"Fondo de Ahorro","a","a",2,-3,6,"Asimilados Integrantes Sociedades Asociaciones Civiles",567891011]
[null,6,"Caja de ahorro","a","a",2,-4,7,"Asimilados Miembros consejos",567891011]
[null,9,"Contribuciones a Cargo del Trabajador Pagadas por el Patrón","a","r",2,-7,8,"Asimilados comisionistas",567891011]
[null,10,"Premios por puntualidad","a","r",2,-8,9,"Asimilados Honorarios",567891011]
[null,11,"Prima de Seguro de vida","a","a",2,-9,10,"Asimilados acciones",567891011]
[null,12,"Seguro de Gastos Médicos Mayores","a","a",2,-10,11,"Asimilados otros",567891011]
[null,13,"Cuotas Sindicales Pagadas por el Patrón","a","a",2,-11,12,"Jubilados o Pensionados",3412]
[null,14,"Subsidios por incapacidad","a","a",2,-12,13,"Indemnización o Separación",13]
[null,15,"Becas para trabajadores y/o hijos","a","a",2,-13,99,"Otro Regimen",99]
[null,19,"Horas extra","a","a",2,-17]
[null,20,"Prima dominical","a","a",2,-18]
[null,21,"Prima vacacional","a","a",2,-19]
[null,24,"Seguro de retiro","a","a",2,-22]
[null,26,"Reembolso por funeral","a","a",2,-24]
[null,27,"Cuotas de seguridad social pagadas por el patrón","r","a",2,-25]
[null,28,"Comisiones","a","r",2,-26]
[null,29,"Vales de despensa","a","a",2,-27]
[null,30,"Vales de restaurante","a","a",2,-28]
[null,31,"Vales de gasolina","a","a",2,-29]
[null,32,"Vales de ropa","a","a",2,-30]
[null,33,"Ayuda para renta","a","a",2,-31]
[null,34,"Ayuda para artículos escolares","a","a",2,-32]
[null,35,"Ayuda para anteojos","a","a",2,-33]
[null,36,"Ayuda para transporte","a","a",2,-34]
[null,37,"Ayuda para gastos de funeral","a","a",2,-35]
[null,38,"Otros ingresos por salarios","a","a",2,-36]
[null,47,"Alimentación diferentes a los establecidos en el Art 94 último párrafo LISR","a","a",2,-45]
[null,48,"Habitación","a","a",2,-46]
[null,49,"Premios por asistencia","a","r",2,-47]
[null,50,"Viáticos","a","a",2,-48]
[null,39,"Jubilaciones, pensiones o haberes de retiro","a","a",3412,3373]
[null,44,"Jubilaciones, pensiones o haberes de retiro en parcialidades","a","a",3412,3368]
[null,51,"Pagos por gratificaciones, primas, compensaciones, recompensas u otros a extrabajadores derivados de jubilación en parcialidades","a","r",3412,3361]
[null,52,"Pagos que se realicen a extrabajadores que obtengan una jubilación en parcialidades derivados de la ejecución de resoluciones judicial o de un laudo","a","a",3412,3360]
[null,53,"Pagos que se realicen a extrabajadores que obtengan una jubilación en una sola exhibición derivados de la ejecución de resoluciones judicial o de un laudo","a","a",3412,3359]
[null,22,"Prima por antigüedad","a","a",13,-9]
[null,23,"Pagos por separación","a","a",13,-10]
[null,25,"Indemnizaciones","a","a",13,-12]
[null,45,"Ingresos en acciones o títulos valor que representan bienes","a","r",567891011,567890966]
[null,46,"Ingresos asimilados a salarios","a","r",567891011,567890965]

{"sheet":"c_Estado","index":10,"n_rows":100,"n_cols":5,"rows_kept":100,"cut":false,"hidden":true,"merged":[[0,0,0,2]]}
["Catálogo de estados. "]
[]
[]
[]
["c_Estado","c_Pais","Nombre del estado","Fecha inicio de vigencia","Fecha fin de vigencia"]
["AGU","MEX","Aguascalientes","2022-01-01"]
["BCN","MEX","Baja California","2022-01-01"]
["BCS","MEX","Baja California Sur","2022-01-01"]
["CAM","MEX","Campeche","2022-01-01"]
["CHP","MEX","Chiapas","2022-01-01"]
["CHH","MEX","Chihuahua","2022-01-01"]
["COA","MEX","Coahuila","2022-01-01"]
["COL","MEX","Colima","2022-01-01"]
["CMX","MEX","Ciudad de México","2022-01-01"]
["DUR","MEX","Durango","2022-01-01"]
["GUA","MEX","Guanajuato","2022-01-01"]
["GRO","MEX","Guerrero","2022-01-01"]
["HID","MEX","Hidalgo","2022-01-01"]
["JAL","MEX","Jalisco","2022-01-01"]
["MEX","MEX","Estado de México","2022-01-01"]
["MIC","MEX","Michoacán","2022-01-01"]
["MOR","MEX","Morelos","2022-01-01"]
["NAY","MEX","Nayarit","2022-01-01"]
["NLE","MEX","Nuevo León","2022-01-01"]
["OAX","MEX","Oaxaca","2022-01-01"]
["PUE","MEX","Puebla","2022-01-01"]
["QUE","MEX","Querétaro","2022-01-01"]
["ROO","MEX","Quintana Roo","2022-01-01"]
["SLP","MEX","San Luis Potosí","2022-01-01"]
["SIN","MEX","Sinaloa","2022-01-01"]
["SON","MEX","Sonora","2022-01-01"]
["TAB","MEX","Tabasco","2022-01-01"]
["TAM","MEX","Tamaulipas","2022-01-01"]
["TLA","MEX","Tlaxcala","2022-01-01"]
["VER","MEX","Veracruz","2022-01-01"]
["YUC","MEX","Yucatán","2022-01-01"]
["ZAC","MEX","Zacatecas","2022-01-01"]
["AL","USA","Alabama","2022-01-01"]
["AK","USA","Alaska","2022-01-01"]
["AZ","USA","Arizona","2022-01-01"]
["AR","USA","Arkansas","2022-01-01"]
["CA","USA","California","2022-01-01"]
["NC","USA","Carolina del Norte","2022-01-01"]
["SC","USA","Carolina del Sur","2022-01-01"]
["CO","USA","Colorado","2022-01-01"]
["CT","USA","Connecticut","2022-01-01"]
["ND","USA","Dakota del Norte","2022-01-01"]
["SD","USA","Dakota del Sur","2022-01-01"]
["DE","USA","Delaware","2022-01-01"]
["FL","USA","Florida","2022-01-01"]
["GA","USA","Georgia","2022-01-01"]
["HI","USA","Hawái","2022-01-01"]
["ID","USA","Idaho","2022-01-01"]
["IL","USA","Illinois","2022-01-01"]
["IN","USA","Indiana","2022-01-01"]
["IA","USA","Iowa","2022-01-01"]
["KS","USA","Kansas","2022-01-01"]
["KY","USA","Kentucky","2022-01-01"]
["LA","USA","Luisiana","2022-01-01"]
["ME","USA","Maine","2022-01-01"]
["MD","USA","Maryland","2022-01-01"]
["MA","USA","Massachusetts","2022-01-01"]
["MI","USA","Míchigan","2022-01-01"]
["MN","USA","Minnesota","2022-01-01"]
["MS","USA","Misisipi","2022-01-01"]
["MO","USA","Misuri","2022-01-01"]
["MT","USA","Montana","2022-01-01"]
["NE","USA","Nebraska","2022-01-01"]
["NV","USA","Nevada","2022-01-01"]
["NJ","USA","Nueva Jersey","2022-01-01"]
["NY","USA","Nueva York","2022-01-01"]
["NH","USA","Nuevo Hampshire","2022-01-01"]
["NM","USA","Nuevo México","2022-01-01"]
["OH","USA","Ohio","2022-01-01"]
["OK","USA","Oklahoma","2022-01-01"]
["OR","USA","Oregón","2022-01-01"]
["PA","USA","Pensilvania","2022-01-01"]
["RI","USA","Rhode Island","2022-01-01"]
["TN","USA","Tennessee","2022-01-01"]
["TX","USA","Texas","2022-01-01"]
["UT","USA","Utah","2022-01-01"]
["VT","USA","Vermont","2022-01-01"]
["VA","USA","Virginia","2022-01-01"]
["WV","USA","Virginia Occidental","2022-01-01"]
["WA","USA","Washington","2022-01-01"]
["WI","USA","Wisconsin","2022-01-01"]
["WY","USA","Wyoming","2022-01-01"]
["ON","CAN","Ontario ","2022-01-01"]
["QC","CAN"," Quebec ","2022-01-01"]
["NS","CAN"," Nueva Escocia","2022-01-01"]
["NB","CAN","Nuevo Brunswick ","2022-01-01"]
["MB","CAN"," Manitoba","2022-01-01"]
["BC","CAN"," Columbia Británica","2022-01-01"]
["PE","CAN"," Isla del Príncipe Eduardo","2022-01-01"]
["SK","CAN"," Saskatchewan","2022-01-01"]
["AB","CAN"," Alberta","2022-01-01"]
["NL","CAN"," Terranova y Labrador","2022-01-01"]
["NT","CAN"," Territorios del Noroeste","2022-01-01"]
["YT","CAN"," Yukón","2022-01-01"]
["UN","CAN"," Nunavut","2022-01-01"]